Cogmind - Beta 13 @@@ ROGUE MODE // 2024.04.17 @ 18:23:48 Player: monkeman Result: Destroyed by YZ-K74(R) with Subdweller Beam Cannon Performance ------------- Evolutions (0) 0 Regions Visited (2) 400 Robots Destroyed (35) 175 Value Destroyed (1025) 1025 Prototype IDs (10) 200 Alien Tech Used (0) 0 Bonus (-115) -115 TOTAL SCORE: 1685 Bonus ------- Friendly Fire -115 Cogmind --------- Core Integrity 0/250 Matter 108/300 Energy 100/100 System Corruption 0% Temperature Cool (9) Movement Treading (160) Location -10/Subcaves Parts ------- > --- POWER (1) -------- (None) > --- PROPULSION (2) --- Spiked Treads > --- UTILITY (2) ------ (None) > --- WEAPON (2) ------- (None) > --- INVENTORY (5) ---- Arachnoskeleton Battle Cannon Battle Cannon Peak State ------------ > --- POWER ------------ Light Nuclear Core > --- PROPULSION ------- Light Treads Spiked Treads > --- UTILITY ---------- Scrap Shield > --- WEAPON ----------- Battle Cannon Maul > --- INVENTORY -------- Arachnoskeleton Battle Cannon Grenade Launcher [Rating: 16] Favorites ----------- Power Light Nuclear Core Engine Light Ion Engine Power Core Light Nuclear Core Propulsion Light Treads Treads Light Treads Leg Aluminum Leg Wheel Armored Wheel Utility Huge Storage Unit Device Subdweller Optics Storage Huge Storage Unit Protection Scrap Shield Weapon Heavy Assault Rifle Energy Gun EM Pulse Gun Ballistic Gun Heavy Assault Rifle Ballistic Cannon Battle Cannon Launcher Subdweller Shrapnel Launcher Impact Weapon Maul Build | -11 -10 -10 ------- Run | Yrd Mat Sub Slots Evolved . | . . . Power . | . . . Propulsion . | . . . Utility . | . . . Weapon . | . . . Parts Attached 39 | 6 12 21 Power 4 | 1 1 2 Engine 3 | 1 1 1 Core 1 | . . 1 Reactor . | . . . Propulsion 11 | 2 4 5 Treads 7 | . 2 5 Leg 2 | 2 . . Wheel 2 | . 2 . Hover . | . . . Flight . | . . . Utility 7 | 1 3 3 Device 2 | . 1 1 Storage 2 | 1 1 . Processor . | . . . Hackware . | . . . Protection 3 | . 1 2 Artifact . | . . . Weapon 17 | 2 4 11 Energy Gun 2 | 1 . 1 Energy Cannon . | . . . Ballistic Gun 6 | 1 3 2 Ballistic Cannon 4 | . . 4 Launcher 2 | . . 2 Special Weapon . | . . . Impact Weapon 3 | . 1 2 Slashing Weapon . | . . . Piercing Weapon . | . . . Special Melee Weapon . | . . . Unidentified Prototypes . | . . . Parts Lost 11 | . 2 9 Power 3 | . 1 2 Propulsion 1 | . . 1 Utility 3 | . . 3 Weapon 4 | . 1 3 Highest Loss Streak 5 | . 1 5 To Critical Strikes 1 | . . 1 Average Slot Usage (%) 87 | . 92 85 Engine 4 | . 13 1 Core 7 | . . 9 Treads 22 | . 5 28 Leg 1 | . 5 . Wheel 4 | . 17 . Device 2 | . 4 1 Storage 6 | . 14 4 Protection 9 | . 2 12 Energy Gun 2 | . 1 2 Ballistic Gun 14 | . 25 10 Ballistic Cannon 9 | . . 12 Naked Turns . | . . . Heaviest Build 94 | 11 94 94 Greatest Support 40 | 20 40 40 Greatest Overweight (x) 3 | 1 3 2 Average Overweight (x) . | . 2 . Largest Inventory Capacity 25 | 8 25 25 Average Capacity 14 | 7 21 11 Most Carried 25 | 5 25 25 Average Carried 11 | 4 12 11 Final Capacity 25 | 8 25 5 Final Carried 25 | 5 25 5 Class Distribution -------------------- 91% | Mutant 8% | Derelict-Mutant Dominant Class ---------------- Mutant | -10/Materials Mutant | -10/Subcaves Resources | -11 -10 -10 ----------- Run | Yrd Mat Sub Matter Collected 1394 | 231 485 678 Remotely . | . . . Salvage Created 985 | . 478 507 Parts 81 | . 41 40 Haulers Intercepted 1 | . 1 . Recyclers Shooed 1 | . 1 . Parts Field Recycled . | . . . Retrieved Matter . | . . . Parts Self-Destructed 15 | . . 15 Prevented . | . . . Kills | -11 -10 -10 ------- Run | Yrd Mat Sub Combat Hostiles Destroyed 28 | . 10 18 Guns 16 | . 10 6 Cannons 4 | . . 4 AOE 8 | . . 8 Classes Destroyed 9 | . 5 4 Builder 1 | . 1 . Hauler 1 | . 1 . Turret 2 | . . 2 Watcher 3 | . 3 . Swarmer 6 | . 2 4 Grunt 8 | . 8 . Sentry 1 | . . 1 Artisan 1 | . . 1 Subdweller 13 | . . 13 Best Kill Streak 5 | . 4 5 Combat Bots Only 4 | . 3 4 Max Kills in Single Turn 3 | . 2 3 Gunslinging . | . . . Exploded 3 | . . 3 Melee . | . . . Uniques/NPCs Destroyed . | . . . Combat | -11 -10 -10 -------- Run | Yrd Mat Sub Hostile Shots Fired 181 | . 61 120 Missed 54 | . 17 37 Damage Taken 2186 | . 503 1683 Core 259 | . 67 192 Absorbed by Shields . | . . . Core Remaining (%) 100 | 100 . . Volleys Fired 107 | . 40 67 Largest 2 | . 2 2 Hottest 79 | . 63 79 Shots Fired 209 | . 79 130 Gun 138 | . 79 59 Cannon 61 | . . 61 Launcher 10 | . . 10 Special . | . . . Kinetic 191 | . 72 119 Thermal . | . . . Explosive 2 | . . 2 Electromagnetic 16 | . 7 9 Robot Hit Streak 19 | . 13 19 Robot Miss Streak 4 | . 4 2 Penetration Max . | . . . Secondary Targets 1 | . 1 . Max Gunslinging Chain 1 | . 1 . Shots Hit Robots 151 | . 48 103 Core Hits 55 | . 19 36 Critical Kills 1 | . 1 . Critical Parts Destroyed . | . . . Critical Strikes 2 | . 1 1 Destroy 1 | . 1 . Blast 1 | . . 1 Melee Attacks 14 | . 7 7 Impact 14 | . 7 7 Slashing . | . . . Piercing . | . . . Sneak Attacks 1 | . . 1 Combat Hostiles . | . . . Follow-up Attacks . | . . . Damage Inflicted 3358 | . 734 2624 Guns 1348 | . 734 614 Cannons 913 | . . 913 Explosions 1002 | . . 1002 Melee 95 | . . 95 Ramming . | . . . Kinetic 2843 | . 689 2154 Thermal 66 | . . 66 Explosive 258 | . . 258 Electromagnetic 96 | . 45 51 Impact 95 | . . 95 Slashing . | . . . Piercing . | . . . Highest Corruption . | . . . Average Corruption . | . . . Corruption Purged . | . . . Corruption Blocked . | . . . Overload Shots . | . . . Overflow Damage 75 | . . 75 Projectiles . | . . . Explosions 20 | . . 20 Melee 55 | . . 55 Knockbacks 5 | . . 5 Impact . | . . . Kinetic 4 | . . 4 Secondary 1 | . . 1 Self-Inflicted Damage 106 | . . 106 Shots 3 | . . 3 Rammed . | . . . Targets Rammed . | . . . Kicked . | . . . Crushed . | . . . Highest Temperature 18 | . 18 . Average Temperature 6 | . 6 . Received Heat Transfer 507 | . 198 309 Siege Activations . | . . . Robots Corrupted . | . . . Combat Hostiles . | . . . Parts Fried . | . . . Impact Corruptions 2 | . . 2 Robots Melted . | . . . Combat Hostiles . | . . . Parts Melted . | . . . Heat Transferred 50 | . . 50 Parts Sabotaged . | . . . Parts Stolen . | . . . Parts Stripped . | . . . Power Chain Reactions 1 | . . 1 Alert | -11 -10 -10 ------- Run | Yrd Mat Sub Peak Influence 143 | . 143 . Initial . | . . . Average 62 | . 66 . Maximum Alert Level . | . . . Low Security (%) 100 | 100 100 . Level 1 . | . . . Level 2 . | . . . Level 3 . | . . . Level 4 . | . . . Level 5 . | . . . High Security . | . . . Max Security . | . . . Squads Dispatched 2 | . 2 . Investigation 1 | . 1 . Extermination . | . . . Reinforcement 1 | . 1 . Assault . | . . . Garrison . | . . . Intercept . | . . . Searches Triggered . | . . . Construction Impeded . | . . . Haulers Reinforced . | . . . Active Scanning Responses . | . . . Cargo Convoy Interrupts . | . . . Stealth | -11 -10 -10 --------- Run | Yrd Mat Sub Distress Signals 1 | . 1 . Communications Jammed . | . . . Distress Signals . | . . . Times Spotted 46 | . 16 30 Peak Tracking Total 6 | . 3 6 Tactical Retreats 4 | . 1 3 Traps | -11 -10 -10 ------- Run | Yrd Mat Sub Traps Triggered 3 | . 2 1 Indirectly . | . . . Trap Hack Attempts . | . . . Triggered . | . . . Disarmed . | . . . Reprogrammed . | . . . Reused . | . . . Traps Extracted . | . . . Installed . | . . . Triggered . | . . . Machines | -11 -10 -10 ---------- Run | Yrd Mat Sub Machines Disabled 5 | . . 5 Max in Single Turn 3 | . . 3 Machines Repaired . | . . . Machines Dismantled . | . . . Machines Sabotaged . | . . . Overloaded Fab Kills . | . . . Hacking | -11 -10 -10 --------- Run | Yrd Mat Sub Machines Accessed 8 | . 7 1 Terminals 7 | . 7 . Fabricators . | . . . Repair Stations . | . . . Recycling Units . | . . . Scanalyzers . | . . . Garrison Access . | . . . Total Hacks 19 | . 16 3 Successful 7 | . 4 3 Failed 11 | . 11 . Catastrophic . | . . . Database Lockouts 1 | . 1 . Manual 9 | . 9 . Terminals 16 | . 16 . Fabricators . | . . . Repair Stations . | . . . Recycling Units . | . . . Scanalyzers . | . . . Garrison Access . | . . . Terminal Hacks 5 | . 2 3 Record 2 | . . 2 Robot Analysis 1 | . 1 . Locate Traps 1 | . 1 . Derelict Proto ID Bank 1 | . . 1 Fabricator Hacks . | . . . Repair Station Hacks . | . . . Recycling Unit Hacks . | . . . Scanalyzer . | . . . Garrison Access Hacks . | . . . Unauthorized Hacks 2 | . 2 . Terminals 2 | . 2 . Botnet 2 | . 2 . Fabricators . | . . . Repair Stations . | . . . Recycling Units . | . . . Scanalyzers . | . . . Garrison Access . | . . . Data Cores Recovered . | . . . Used . | . . . Hacking Detections 5 | . 5 . Full Trace Events . | . . . Feedback Events . | . . . Feedback Blocked . | . . . Robot Schematics Acquired . | . . . Robots Built . | . . . Authchips . | . . . Time . | . . . Total Robot Build Rating . | . . . Part Schematics Acquired . | . . . Parts Built . | . . . Authchips . | . . . Time . | . . . Total Part Build Rating . | . . . Parts Repaired . | . . . Time . | . . . Parts Recycled . | . . . Recycled Matter . | . . . Retrieved Matter . | . . . Retrieved Components . | . . . Parts Scanalyzed . | . . . Part Schematics Acquired . | . . . Parts Damaged . | . . . Bothacking | -11 -10 -10 ------------ Run | Yrd Mat Sub Used RIF Installer . | . . . Robots Hacked . | . . . Non-combat . | . . . Combat . | . . . Robot Hacks Applied . | . . . Relay Couplers Released . | . . . Fabnet Peak Effective % . | . . . Robots Rewired . | . . . Allies Hacked . | . . . Hacks Repelled . | . . . Allies | -11 -10 -10 -------- Run | Yrd Mat Sub Total Allies . | . . . Largest Group . | . . . Highest-Rated Group . | . . . Highest-Rated Ally . | . . . Total Orders . | . . . Ally Attacks . | . . . Total Damage . | . . . Kills . | . . . Allies Corrupted . | . . . Allies Melted . | . . . Intel | -11 -10 -10 ------- Run | Yrd Mat Sub Robot Analysis Total 1 | . 1 . Derelict Logs Recovered 2 | . . 2 Drone Launches . | . . . Drone Recoveries . | . . . Exploration | -11 -10 -10 ------------- Run | Yrd Mat Sub Turns Passed 4806 | 86 1229 3491 Spaces Moved 2384 | 60 660 1664 Core 6 | 6 . . Treads 1738 | . 74 1664 Legs 209 | 54 155 . Wheels 431 | . 431 . Hover . | . . . Flight . | . . . Fastest Speed 50 | 50 120 160 Average Speed 178 | 121 152 190 Slowest Speed 320 | 190 320 320 Overloaded Moves . | . . . Propulsion Burnouts . | . . . Robots Hopped . | . . . Cave-ins Triggered . | . . . Exploration Rate (%) 56 | 5 85 79 Regions Visited 2 Branch Regions 1 Pre-discovered Areas 1 | . . 1 Known Exits Taken . | . . . Unknown Exits Taken 2 | 1 1 . Scrap Searched 10 | . . 10 Spaces Dug 1 | . 1 . Terrain Destroyed 102 | . 1 101 Melee 1 | . 1 . Projectile 2 | . . 2 AOE 99 | . . 99 Terrain Rammed . | . . . Walls Destroyed . | . . . Machines Disabled . | . . . Actions | -11 -10 -10 --------- Run | Yrd Mat Sub Total 2714 | 71 795 1848 Wait 69 | . 39 30 Move 2382 | 59 659 1664 Hop . | . . . Pick Up 50 | 6 29 15 Fast Attach 10 | 5 2 3 Attach 6 | 1 2 3 Detach . | . . . Swap 23 | . 8 15 Drop 47 | . 9 38 Fire 107 | . 40 67 Melee 14 | . 7 7 Ram . | . . . Kick . | . . . Crush . | . . . Escape Stasis . | . . . Rewire . | . . . Trap . | . . . Miscellaneous 6 | . . 6 Route ------- -11/Scrapyard -10/Materials (discovered 6 exits: [*Mat x3] / [*Min x2] / *Sub) -10/Subcaves (discovered 2 exits: [*Mat] / [*Rec]) History --------- Turn | Location | Event 2 | -11/Scrapyard | Met Revision 17 6 | -11/Scrapyard | Discovered new exit (range 13) 87 | -11/Scrapyard | Entered Materials 337 | -10/Materials | Build established: Mutant 547 | -10/Materials | Discovered new exit (range 4) 610 | -10/Materials | Discovered new exit (range 13) 777 | -10/Materials | Discovered new exit (range 13) 1121 | -10/Materials | Discovered new exit (range 7) 1142 | -10/Materials | Discovered new exit (range 15) 1191 | -10/Materials | Central database locked down 1312 | -10/Materials | Discovered new exit (range 2) 1316 | -10/Materials | Entered Subcaves 1594 | -10/Subcaves | Lost 3 parts (1p1u1w) 1738 | -10/Subcaves | A swath of the cavern ceiling suddenly collapsed 2195 | -10/Subcaves | Discovered new exit (range 8) 2418 | -10/Subcaves | Shifting Twisted Machinery released Battle Cannon 2506 | -10/Subcaves | Shifting Twisted Machinery released Battle Cannon 2570 | -10/Subcaves | Learned 2 Materials zone layouts 2781 | -10/Subcaves | Shifting Twisted Machinery released Mak. Leg 3600 | -10/Subcaves | Visited 4L-MR0's lab 3618 | -10/Subcaves | Found Arachnoskeleton 3738 | -10/Subcaves | Disturbed a concealed Subdweller 3863 | -10/Subcaves | Learned location of Zion (-7) 4700 | -10/Subcaves | A swath of the cavern ceiling suddenly collapsed 4710 | -10/Subcaves | Build established: Derelict-Mutant 4780 | -10/Subcaves | Ambushed by Subdweller buried in earth 4789 | -10/Subcaves | Ambushed by Subdweller buried in earth 4793 | -10/Subcaves | Core integrity fell below 50% 4800 | -10/Subcaves | Core integrity fell below 20% 4802 | -10/Subcaves | Discovered new exit (range 16) 4807 | -10/Subcaves | Destroyed by YZ-K74(R) with Subdweller Beam Cannon Last Messages --------------- 04766_ Autobeam Turret destroyed. 04771_ Acquired 3 matter. 04773_ NG-XZM(R): "NOSTUCKSUB!" 04778_ PH-TT3(R): "NOSTUCKSUB!" 04779_ IQ-QCN(R): "ARGHSUB!" 04780_ IQ-QCN(R) destroyed. 04780_ NG-XZM(R) destroyed. 04780_ PH-TT3(R) destroyed. 04781_ ET-ANB(R): "ARGHSUB!" 04790_ YZ-K74(R): "FREEEEDUMB!" 04793_ Subatomizers dissect the Disposable Heat Sink. 04794_ Broken Sub. Optics destroyed. 04795_ Sub. Shrapnel Launcher destroyed. 04795_ Destroyed Sub. Shrapnel Launcher. 04801_ Lgt. Nuclear Core destroyed. 04801_ Battle Cannon destroyed. 04802_ EXIT=FOUND 04805_ Lgt. Treads destroyed. 04807_ The unstable cave ceiling collapses. Map ----- +----------------------------------------------------+ | ## | | ## ##" ### ####### #### | | ### ##### ##?## ####??## ##??####### # | | ### #???# #???## #????????# # | | # #???# ##??## #????????# # | | ##???## #?## ##????????## # | | ######### ##### ##??????????# ## | | ### #####?# ## # # # ##?????????## ## | | #?######?????## #????????## # | | ### ###?????#^ #????##### % | | # #????## ## ## ## ##???## | | ##???# ^ ######## ##????# | | ## #???# ##?## ###???### #### ## | | # ##???#^ ### #??####" ##??###? | | ## #???#^ # #### " ##??????? | | #### ##???#### # # " ##???????? | | #??# #??## ## ## ###""" "###????????? | | ## #### # ##########?######???????????# | | #### ## ###??????????????????????????# | | ???# ## ## ;"#?????????##??#????????????# | | ???# ## ##;; ;"????#### # ###??????????# | | ???# # ## ; ##### #?????????# | | ???# ##;; #?????????# | | ???## ##; #?????????# | | ????# # #????????# | | ????########## % @% ;#?????????# | | ??????????## R R ! <#??????????# | | ?????????## % ! #????????? | | #????????# * !%* #?????????? | | #????????# # ! #?????????? | | #####???## ; # "##??????????? | | # #??## ##?######?????####### | | #??# ## ;##### ##?####### | | #??# ### ####### ## #?# | | #???# #?### #?# | | ##???# ##??### #?# """ | | ##???## ####?# ### # ### ## """ | | #???## ### ##?##### ## """""" | | ##### ## ### ######?### """""# | | ### #?# #???## ""## ""#### | | #?# #?# #????##"#### ""#??? | | ##?###### #?????###??# "##??? | | #???#### #??????????## ##???? | | #???# ##???????????#####????? | | ### #???# ##?????????????????????? | | #?# ###???# #??????????????????????? | | ##?# ##?????# ## #??????????????????????? | | ###?? #??????# ## #??????????????????????? | | #???####??????## ## ##??????????????????????? | | ???????????????# #???????????????????????? | +----------------------------------------------------+ Best States ------------- Heat Dissipation 35 Energy Generation 15 Energy Capacity 250 Matter Stores 300 Matter Capacity 300 Sight Range 21 Terrain Scan Density 10 Armor Coverage 800 Evasion (%) 55 Recoil Reduction 2 Item Schematics ----------------- None Robot Schematics ------------------ None Fabricated ------------ Nothing Alien Tech Used ----------------- None Achievements -------------- None Challenges ------------ None Game ------ Seed ConcussiveCloakClaw Manual? 0 Play Time 00:24:31 Cumulative 32.7 hours Start 2024.04.17 @ 18:03:59 End 2024.04.17 @ 18:23:48 Sessions 1 Manual Loads 0 Difficulty Rogue Special Mode None Game No. 41 Rogue 41 Adventurer 0 Explorer 0 Win Type - Total 1 Types 1/0/0/0/0/0/0/0/0 Lore% 19 Gallery% 36 Achievement% 26 Wizard Run 0 Options --------- Layout 1 ASCII 0 Keyboard 0 Movement Mouse Keybinds 0 Fullscreen 1 Font 24/Smallcaps Map View 50x35 Zoom Use 0% Tactical HUD 1 Map Filters NONE Filters NONE Steam 1 RUN: ff9b650f-19d1-46d0-8a8f-d721fc01a613